Workbook

Sheet Início
H6: 1. APERTE NO BOTÃO HABILITAR EDIÇÃO
H7: 2. APERTE NO BOTÃO HABILITAR CONTEÚDO

Sheet Calculadora Financeira (hidden)
B3: Calculadora

Sheet Juros Simples x Compostos (hidden)
A1: Mês | B1: Juros Simples | C1: Juros Compostos
A2: 1 | B2: ='Juros Simples x Compostos'!$I$6*(1+'Juros Simples x Compostos'!$I$5) -> 21000 | C2: ='Juros Simples x Compostos'!$I$6*(1+'Juros Simples x Compostos'!$I$5) -> 21000
A3: =A2+1 -> 2 | B3: ='Juros Simples x Compostos'!$I$6*'Juros Simples x Compostos'!$I$5+B2 -> 22000 | C3: =C2*(1+'Juros Simples x Compostos'!$I$5) -> 22050 | P3: Aqui é possível visualizar graficamente a diferença entre o juros simples e o composto. Altere os valores das células pontilhadas para fazer simulações.
A4: 3 | B4: ='Juros Simples x Compostos'!$I$6*'Juros Simples x Compostos'!$I$5+B3 -> 23000 | C4: =C3*(1+'Juros Simples x Compostos'!$I$5) -> 23152.5 | F4: Tempo de aplicação em meses | I4: 120 | K4: Montante Final
A5: 4 | B5: ='Juros Simples x Compostos'!$I$6*'Juros Simples x Compostos'!$I$5+B4 -> 24000 | C5: =C4*(1+'Juros Simples x Compostos'!$I$5) -> 24310.125 | F5: Taxa de juros ao mês (%) | I5: 0.05 | K5: Juros Compostos | M5: =INDEX(C:C,'Juros Simples x Compostos'!I4+1) -> 6978239.713
A6: 5 | B6: ='Juros Simples x Compostos'!$I$6*'Juros Simples x Compostos'!$I$5+B5 -> 25000 | C6: =C5*(1+'Juros Simples x Compostos'!$I$5) -> 25525.63125 | F6: Capital inicial (R$) | I6: 20000 | K6: Juros Simples | M6: =INDEX(B:B,'Juros Simples x Compostos'!I4+1) -> 140000
A7: 6 | B7: ='Juros Simples x Compostos'!$I$6*'Juros Simples x Compostos'!$I$5+B6 -> 26000 | C7: =C6*(1+'Juros Simples x Compostos'!$I$5) -> 26801.91281
A8: 7 | B8: ='Juros Simples x Compostos'!$I$6*'Juros Simples x Compostos'!$I$5+B7 -> 27000 | C8: =C7*(1+'Juros Simples x Compostos'!$I$5) -> 28142.00845
A9: 8 | B9: ='Juros Simples x Compostos'!$I$6*'Juros Simples x Compostos'!$I$5+B8 -> 28000 | C9: =C8*(1+'Juros Simples x Compostos'!$I$5) -> 29549.10888
A10: 9 | B10: ='Juros Simples x Compostos'!$I$6*'Juros Simples x Compostos'!$I$5+B9 -> 29000 | C10: =C9*(1+'Juros Simples x Compostos'!$I$5) -> 31026.56432
A11: 10 | B11: ='Juros Simples x Compostos'!$I$6*'Juros Simples x Compostos'!$I$5+B10 -> 30000 | C11: =C10*(1+'Juros Simples x Compostos'!$I$5) -> 32577.89254
A12: 11 | B12: ='Juros Simples x Compostos'!$I$6*'Juros Simples x Compostos'!$I$5+B11 -> 31000 | C12: =C11*(1+'Juros Simples x Compostos'!$I$5) -> 34206.78716
A13: 12 | B13: ='Juros Simples x Compostos'!$I$6*'Juros Simples x Compostos'!$I$5+B12 -> 32000 | C13: =C12*(1+'Juros Simples x Compostos'!$I$5) -> 35917.12652
A14: 13 | B14: ='Juros Simples x Compostos'!$I$6*'Juros Simples x Compostos'!$I$5+B13 -> 33000 | C14: =C13*(1+'Juros Simples x Compostos'!$I$5) -> 37712.98285
A15: 14 | B15: ='Juros Simples x Compostos'!$I$6*'Juros Simples x Compostos'!$I$5+B14 -> 34000 | C15: =C14*(1+'Juros Simples x Compostos'!$I$5) -> 39598.63199
A16: 15 | B16: ='Juros Simples x Compostos'!$I$6*'Juros Simples x Compostos'!$I$5+B15 -> 35000 | C16: =C15*(1+'Juros Simples x Compostos'!$I$5) -> 41578.56359
A17: 16 | B17: ='Juros Simples x Compostos'!$I$6*'Juros Simples x Compostos'!$I$5+B16 -> 36000 | C17: =C16*(1+'Juros Simples x Compostos'!$I$5) -> 43657.49177
A18: 17 | B18: ='Juros Simples x Compostos'!$I$6*'Juros Simples x Compostos'!$I$5+B17 -> 37000 | C18: =C17*(1+'Juros Simples x Compostos'!$I$5) -> 45840.36636
A19: 18 | B19: ='Juros Simples x Compostos'!$I$6*'Juros Simples x Compostos'!$I$5+B18 -> 38000 | C19: =C18*(1+'Juros Simples x Compostos'!$I$5) -> 48132.38467
A20: 19 | B20: ='Juros Simples x Compostos'!$I$6*'Juros Simples x Compostos'!$I$5+B19 -> 39000 | C20: =C19*(1+'Juros Simples x Compostos'!$I$5) -> 50539.00391
A21: 20 | B21: ='Juros Simples x Compostos'!$I$6*'Juros Simples x Compostos'!$I$5+B20 -> 40000 | C21: =C20*(1+'Juros Simples x Compostos'!$I$5) -> 53065.9541
A22: 21 | B22: ='Juros Simples x Compostos'!$I$6*'Juros Simples x Compostos'!$I$5+B21 -> 41000 | C22: =C21*(1+'Juros Simples x Compostos'!$I$5) -> 55719.25181
A23: 22 | B23: ='Juros Simples x Compostos'!$I$6*'Juros Simples x Compostos'!$I$5+B22 -> 42000 | C23: =C22*(1+'Juros Simples x Compostos'!$I$5) -> 58505.2144
A24: 23 | B24: ='Juros Simples x Compostos'!$I$6*'Juros Simples x Compostos'!$I$5+B23 -> 43000 | C24: =C23*(1+'Juros Simples x Compostos'!$I$5) -> 61430.47512
A25: 24 | B25: ='Juros Simples x Compostos'!$I$6*'Juros Simples x Compostos'!$I$5+B24 -> 44000 | C25: =C24*(1+'Juros Simples x Compostos'!$I$5) -> 64501.99887
A26: 25 | B26: ='Juros Simples x Compostos'!$I$6*'Juros Simples x Compostos'!$I$5+B25 -> 45000 | C26: =C25*(1+'Juros Simples x Compostos'!$I$5) -> 67727.09882
A27: 26 | B27: ='Juros Simples x Compostos'!$I$6*'Juros Simples x Compostos'!$I$5+B26 -> 46000 | C27: =C26*(1+'Juros Simples x Compostos'!$I$5) -> 71113.45376
A28: 27 | B28: ='Juros Simples x Compostos'!$I$6*'Juros Simples x Compostos'!$I$5+B27 -> 47000 | C28: =C27*(1+'Juros Simples x Compostos'!$I$5) -> 74669.12645
A29: 28 | B29: ='Juros Simples x Compostos'!$I$6*'Juros Simples x Compostos'!$I$5+B28 -> 48000 | C29: =C28*(1+'Juros Simples x Compostos'!$I$5) -> 78402.58277
A30: 29 | B30: ='Juros Simples x Compostos'!$I$6*'Juros Simples x Compostos'!$I$5+B29 -> 49000 | C30: =C29*(1+'Juros Simples x Compostos'!$I$5) -> 82322.71191
A31: 30 | B31: ='Juros Simples x Compostos'!$I$6*'Juros Simples x Compostos'!$I$5+B30 -> 50000 | C31: =C30*(1+'Juros Simples x Compostos'!$I$5) -> 86438.8475
A32: 31 | B32: ='Juros Simples x Compostos'!$I$6*'Juros Simples x Compostos'!$I$5+B31 -> 51000 | C32: =C31*(1+'Juros Simples x Compostos'!$I$5) -> 90760.78988
A33: 32 | B33: ='Juros Simples x Compostos'!$I$6*'Juros Simples x Compostos'!$I$5+B32 -> 52000 | C33: =C32*(1+'Juros Simples x Compostos'!$I$5) -> 95298.82937
A34: 33 | B34: ='Juros Simples x Compostos'!$I$6*'Juros Simples x Compostos'!$I$5+B33 -> 53000 | C34: =C33*(1+'Juros Simples x Compostos'!$I$5) -> 100063.7708
A35: 34 | B35: ='Juros Simples x Compostos'!$I$6*'Juros Simples x Compostos'!$I$5+B34 -> 54000 | C35: =C34*(1+'Juros Simples x Compostos'!$I$5) -> 105066.9594
A36: 35 | B36: ='Juros Simples x Compostos'!$I$6*'Juros Simples x Compostos'!$I$5+B35 -> 55000 | C36: =C35*(1+'Juros Simples x Compostos'!$I$5) -> 110320.3074
A37: 36 | B37: ='Juros Simples x Compostos'!$I$6*'Juros Simples x Compostos'!$I$5+B36 -> 56000 | C37: =C36*(1+'Juros Simples x Compostos'!$I$5) -> 115836.3227
A38: 37 | B38: ='Juros Simples x Compostos'!$I$6*'Juros Simples x Compostos'!$I$5+B37 -> 57000 | C38: =C37*(1+'Juros Simples x Compostos'!$I$5) -> 121628.1389
A39: 38 | B39: ='Juros Simples x Compostos'!$I$6*'Juros Simples x Compostos'!$I$5+B38 -> 58000 | C39: =C38*(1+'Juros Simples x Compostos'!$I$5) -> 127709.5458
A40: 39 | B40: ='Juros Simples x Compostos'!$I$6*'Juros Simples x Compostos'!$I$5+B39 -> 59000 | C40: =C39*(1+'Juros Simples x Compostos'!$I$5) -> 134095.0231
A41: 40 | B41: ='Juros Simples x Compostos'!$I$6*'Juros Simples x Compostos'!$I$5+B40 -> 60000 | C41: =C40*(1+'Juros Simples x Compostos'!$I$5) -> 140799.7742
A42: 41 | B42: ='Juros Simples x Compostos'!$I$6*'Juros Simples x Compostos'!$I$5+B41 -> 61000 | C42: =C41*(1+'Juros Simples x Compostos'!$I$5) -> 147839.763
A43: 42 | B43: ='Juros Simples x Compostos'!$I$6*'Juros Simples x Compostos'!$I$5+B42 -> 62000 | C43: =C42*(1+'Juros Simples x Compostos'!$I$5) -> 155231.7511
A44: 43 | B44: ='Juros Simples x Compostos'!$I$6*'Juros Simples x Compostos'!$I$5+B43 -> 63000 | C44: =C43*(1+'Juros Simples x Compostos'!$I$5) -> 162993.3387
A45: 44 | B45: ='Juros Simples x Compostos'!$I$6*'Juros Simples x Compostos'!$I$5+B44 -> 64000 | C45: =C44*(1+'Juros Simples x Compostos'!$I$5) -> 171143.0056
A46: 45 | B46: ='Juros Simples x Compostos'!$I$6*'Juros Simples x Compostos'!$I$5+B45 -> 65000 | C46: =C45*(1+'Juros Simples x Compostos'!$I$5) -> 179700.1559
A47: 46 | B47: ='Juros Simples x Compostos'!$I$6*'Juros Simples x Compostos'!$I$5+B46 -> 66000 | C47: =C46*(1+'Juros Simples x Compostos'!$I$5) -> 188685.1637
A48: 47 | B48: ='Juros Simples x Compostos'!$I$6*'Juros Simples x Compostos'!$I$5+B47 -> 67000 | C48: =C47*(1+'Juros Simples x Compostos'!$I$5) -> 198119.4218
A49: 48 | B49: ='Juros Simples x Compostos'!$I$6*'Juros Simples x Compostos'!$I$5+B48 -> 68000 | C49: =C48*(1+'Juros Simples x Compostos'!$I$5) -> 208025.3929
A50: 49 | B50: ='Juros Simples x Compostos'!$I$6*'Juros Simples x Compostos'!$I$5+B49 -> 69000 | C50: =C49*(1+'Juros Simples x Compostos'!$I$5) -> 218426.6626
A51: 50 | B51: ='Juros Simples x Compostos'!$I$6*'Juros Simples x Compostos'!$I$5+B50 -> 70000 | C51: =C50*(1+'Juros Simples x Compostos'!$I$5) -> 229347.9957
A52: 51 | B52: ='Juros Simples x Compostos'!$I$6*'Juros Simples x Compostos'!$I$5+B51 -> 71000 | C52: =C51*(1+'Juros Simples x Compostos'!$I$5) -> 240815.3955
A53: 52 | B53: ='Juros Simples x Compostos'!$I$6*'Juros Simples x Compostos'!$I$5+B52 -> 72000 | C53: =C52*(1+'Juros Simples x Compostos'!$I$5) -> 252856.1653
A54: 53 | B54: ='Juros Simples x Compostos'!$I$6*'Juros Simples x Compostos'!$I$5+B53 -> 73000 | C54: =C53*(1+'Juros Simples x Compostos'!$I$5) -> 265498.9735
A55: 54 | B55: ='Juros Simples x Compostos'!$I$6*'Juros Simples x Compostos'!$I$5+B54 -> 74000 | C55: =C54*(1+'Juros Simples x Compostos'!$I$5) -> 278773.9222
A56: 55 | B56: ='Juros Simples x Compostos'!$I$6*'Juros Simples x Compostos'!$I$5+B55 -> 75000 | C56: =C55*(1+'Juros Simples x Compostos'!$I$5) -> 292712.6183
A57: 56 | B57: ='Juros Simples x Compostos'!$I$6*'Juros Simples x Compostos'!$I$5+B56 -> 76000 | C57: =C56*(1+'Juros Simples x Compostos'!$I$5) -> 307348.2492
A58: 57 | B58: ='Juros Simples x Compostos'!$I$6*'Juros Simples x Compostos'!$I$5+B57 -> 77000 | C58: =C57*(1+'Juros Simples x Compostos'!$I$5) -> 322715.6617
A59: 58 | B59: ='Juros Simples x Compostos'!$I$6*'Juros Simples x Compostos'!$I$5+B58 -> 78000 | C59: =C58*(1+'Juros Simples x Compostos'!$I$5) -> 338851.4448
A60: 59 | B60: ='Juros Simples x Compostos'!$I$6*'Juros Simples x Compostos'!$I$5+B59 -> 79000 | C60: =C59*(1+'Juros Simples x Compostos'!$I$5) -> 355794.017
A61: 60 | B61: ='Juros Simples x Compostos'!$I$6*'Juros Simples x Compostos'!$I$5+B60 -> 80000 | C61: =C60*(1+'Juros Simples x Compostos'!$I$5) -> 373583.7179
A62: 61 | B62: ='Juros Simples x Compostos'!$I$6*'Juros Simples x Compostos'!$I$5+B61 -> 81000 | C62: =C61*(1+'Juros Simples x Compostos'!$I$5) -> 392262.9038
A63: 62 | B63: ='Juros Simples x Compostos'!$I$6*'Juros Simples x Compostos'!$I$5+B62 -> 82000 | C63: =C62*(1+'Juros Simples x Compostos'!$I$5) -> 411876.049
A64: 63 | B64: ='Juros Simples x Compostos'!$I$6*'Juros Simples x Compostos'!$I$5+B63 -> 83000 | C64: =C63*(1+'Juros Simples x Compostos'!$I$5) -> 432469.8514
A65: 64 | B65: ='Juros Simples x Compostos'!$I$6*'Juros Simples x Compostos'!$I$5+B64 -> 84000 | C65: =C64*(1+'Juros Simples x Compostos'!$I$5) -> 454093.344
A66: 65 | B66: ='Juros Simples x Compostos'!$I$6*'Juros Simples x Compostos'!$I$5+B65 -> 85000 | C66: =C65*(1+'Juros Simples x Compostos'!$I$5) -> 476798.0112
A67: =A66+1 -> 66 | B67: ='Juros Simples x Compostos'!$I$6*'Juros Simples x Compostos'!$I$5+B66 -> 86000 | C67: =C66*(1+'Juros Simples x Compostos'!$I$5) -> 500637.9117
A68: 67 | B68: ='Juros Simples x Compostos'!$I$6*'Juros Simples x Compostos'!$I$5+B67 -> 87000 | C68: =C67*(1+'Juros Simples x Compostos'!$I$5) -> 525669.8073
A69: 68 | B69: ='Juros Simples x Compostos'!$I$6*'Juros Simples x Compostos'!$I$5+B68 -> 88000 | C69: =C68*(1+'Juros Simples x Compostos'!$I$5) -> 551953.2977
A70: 69 | B70: ='Juros Simples x Compostos'!$I$6*'Juros Simples x Compostos'!$I$5+B69 -> 89000 | C70: =C69*(1+'Juros Simples x Compostos'!$I$5) -> 579550.9626
A71: 70 | B71: ='Juros Simples x Compostos'!$I$6*'Juros Simples x Compostos'!$I$5+B70 -> 90000 | C71: =C70*(1+'Juros Simples x Compostos'!$I$5) -> 608528.5107
A72: 71 | B72: ='Juros Simples x Compostos'!$I$6*'Juros Simples x Compostos'!$I$5+B71 -> 91000 | C72: =C71*(1+'Juros Simples x Compostos'!$I$5) -> 638954.9362
A73: 72 | B73: ='Juros Simples x Compostos'!$I$6*'Juros Simples x Compostos'!$I$5+B72 -> 92000 | C73: =C72*(1+'Juros Simples x Compostos'!$I$5) -> 670902.6831
A74: 73 | B74: ='Juros Simples x Compostos'!$I$6*'Juros Simples x Compostos'!$I$5+B73 -> 93000 | C74: =C73*(1+'Juros Simples x Compostos'!$I$5) -> 704447.8172
A75: 74 | B75: ='Juros Simples x Compostos'!$I$6*'Juros Simples x Compostos'!$I$5+B74 -> 94000 | C75: =C74*(1+'Juros Simples x Compostos'!$I$5) -> 739670.2081
A76: 75 | B76: ='Juros Simples x Compostos'!$I$6*'Juros Simples x Compostos'!$I$5+B75 -> 95000 | C76: =C75*(1+'Juros Simples x Compostos'!$I$5) -> 776653.7185
A77: 76 | B77: ='Juros Simples x Compostos'!$I$6*'Juros Simples x Compostos'!$I$5+B76 -> 96000 | C77: =C76*(1+'Juros Simples x Compostos'!$I$5) -> 815486.4044
A78: 77 | B78: ='Juros Simples x Compostos'!$I$6*'Juros Simples x Compostos'!$I$5+B77 -> 97000 | C78: =C77*(1+'Juros Simples x Compostos'!$I$5) -> 856260.7246
A79: 78 | B79: ='Juros Simples x Compostos'!$I$6*'Juros Simples x Compostos'!$I$5+B78 -> 98000 | C79: =C78*(1+'Juros Simples x Compostos'!$I$5) -> 899073.7608
A80: 79 | B80: ='Juros Simples x Compostos'!$I$6*'Juros Simples x Compostos'!$I$5+B79 -> 99000 | C80: =C79*(1+'Juros Simples x Compostos'!$I$5) -> 944027.4489
A81: 80 | B81: ='Juros Simples x Compostos'!$I$6*'Juros Simples x Compostos'!$I$5+B80 -> 100000 | C81: =C80*(1+'Juros Simples x Compostos'!$I$5) -> 991228.8213
A82: 81 | B82: ='Juros Simples x Compostos'!$I$6*'Juros Simples x Compostos'!$I$5+B81 -> 101000 | C82: =C81*(1+'Juros Simples x Compostos'!$I$5) -> 1040790.262
A83: 82 | B83: ='Juros Simples x Compostos'!$I$6*'Juros Simples x Compostos'!$I$5+B82 -> 102000 | C83: =C82*(1+'Juros Simples x Compostos'!$I$5) -> 1092829.776
A84: 83 | B84: ='Juros Simples x Compostos'!$I$6*'Juros Simples x Compostos'!$I$5+B83 -> 103000 | C84: =C83*(1+'Juros Simples x Compostos'!$I$5) -> 1147471.264
A85: 84 | B85: ='Juros Simples x Compostos'!$I$6*'Juros Simples x Compostos'!$I$5+B84 -> 104000 | C85: =C84*(1+'Juros Simples x Compostos'!$I$5) -> 1204844.828
A86: 85 | B86: ='Juros Simples x Compostos'!$I$6*'Juros Simples x Compostos'!$I$5+B85 -> 105000 | C86: =C85*(1+'Juros Simples x Compostos'!$I$5) -> 1265087.069
A87: 86 | B87: ='Juros Simples x Compostos'!$I$6*'Juros Simples x Compostos'!$I$5+B86 -> 106000 | C87: =C86*(1+'Juros Simples x Compostos'!$I$5) -> 1328341.422
A88: 87 | B88: ='Juros Simples x Compostos'!$I$6*'Juros Simples x Compostos'!$I$5+B87 -> 107000 | C88: =C87*(1+'Juros Simples x Compostos'!$I$5) -> 1394758.493
A89: 88 | B89: ='Juros Simples x Compostos'!$I$6*'Juros Simples x Compostos'!$I$5+B88 -> 108000 | C89: =C88*(1+'Juros Simples x Compostos'!$I$5) -> 1464496.418
A90: 89 | B90: ='Juros Simples x Compostos'!$I$6*'Juros Simples x Compostos'!$I$5+B89 -> 109000 | C90: =C89*(1+'Juros Simples x Compostos'!$I$5) -> 1537721.239
A91: 90 | B91: ='Juros Simples x Compostos'!$I$6*'Juros Simples x Compostos'!$I$5+B90 -> 110000 | C91: =C90*(1+'Juros Simples x Compostos'!$I$5) -> 1614607.301
A92: 91 | B92: ='Juros Simples x Compostos'!$I$6*'Juros Simples x Compostos'!$I$5+B91 -> 111000 | C92: =C91*(1+'Juros Simples x Compostos'!$I$5) -> 1695337.666
A93: 92 | B93: ='Juros Simples x Compostos'!$I$6*'Juros Simples x Compostos'!$I$5+B92 -> 112000 | C93: =C92*(1+'Juros Simples x Compostos'!$I$5) -> 1780104.549
A94: 93 | B94: ='Juros Simples x Compostos'!$I$6*'Juros Simples x Compostos'!$I$5+B93 -> 113000 | C94: =C93*(1+'Juros Simples x Compostos'!$I$5) -> 1869109.777
A95: 94 | B95: ='Juros Simples x Compostos'!$I$6*'Juros Simples x Compostos'!$I$5+B94 -> 114000 | C95: =C94*(1+'Juros Simples x Compostos'!$I$5) -> 1962565.266
A96: 95 | B96: ='Juros Simples x Compostos'!$I$6*'Juros Simples x Compostos'!$I$5+B95 -> 115000 | C96: =C95*(1+'Juros Simples x Compostos'!$I$5) -> 2060693.529
A97: 96 | B97: ='Juros Simples x Compostos'!$I$6*'Juros Simples x Compostos'!$I$5+B96 -> 116000 | C97: =C96*(1+'Juros Simples x Compostos'!$I$5) -> 2163728.205
A98: 97 | B98: ='Juros Simples x Compostos'!$I$6*'Juros Simples x Compostos'!$I$5+B97 -> 117000 | C98: =C97*(1+'Juros Simples x Compostos'!$I$5) -> 2271914.616
A99: 98 | B99: ='Juros Simples x Compostos'!$I$6*'Juros Simples x Compostos'!$I$5+B98 -> 118000 | C99: =C98*(1+'Juros Simples x Compostos'!$I$5) -> 2385510.346
A100: 99 | B100: ='Juros Simples x Compostos'!$I$6*'Juros Simples x Compostos'!$I$5+B99 -> 119000 | C100: =C99*(1+'Juros Simples x Compostos'!$I$5) -> 2504785.864
A101: 100 | B101: ='Juros Simples x Compostos'!$I$6*'Juros Simples x Compostos'!$I$5+B100 -> 120000 | C101: =C100*(1+'Juros Simples x Compostos'!$I$5) -> 2630025.157
A102: 101 | B102: ='Juros Simples x Compostos'!$I$6*'Juros Simples x Compostos'!$I$5+B101 -> 121000 | C102: =C101*(1+'Juros Simples x Compostos'!$I$5) -> 2761526.415
A103: 102 | B103: ='Juros Simples x Compostos'!$I$6*'Juros Simples x Compostos'!$I$5+B102 -> 122000 | C103: =C102*(1+'Juros Simples x Compostos'!$I$5) -> 2899602.736
A104: 103 | B104: ='Juros Simples x Compostos'!$I$6*'Juros Simples x Compostos'!$I$5+B103 -> 123000 | C104: =C103*(1+'Juros Simples x Compostos'!$I$5) -> 3044582.872
A105: 104 | B105: ='Juros Simples x Compostos'!$I$6*'Juros Simples x Compostos'!$I$5+B104 -> 124000 | C105: =C104*(1+'Juros Simples x Compostos'!$I$5) -> 3196812.016
A106: 105 | B106: ='Juros Simples x Compostos'!$I$6*'Juros Simples x Compostos'!$I$5+B105 -> 125000 | C106: =C105*(1+'Juros Simples x Compostos'!$I$5) -> 3356652.617
A107: 106 | B107: ='Juros Simples x Compostos'!$I$6*'Juros Simples x Compostos'!$I$5+B106 -> 126000 | C107: =C106*(1+'Juros Simples x Compostos'!$I$5) -> 3524485.248
A108: 107 | B108: ='Juros Simples x Compostos'!$I$6*'Juros Simples x Compostos'!$I$5+B107 -> 127000 | C108: =C107*(1+'Juros Simples x Compostos'!$I$5) -> 3700709.51
A109: 108 | B109: ='Juros Simples x Compostos'!$I$6*'Juros Simples x Compostos'!$I$5+B108 -> 128000 | C109: =C108*(1+'Juros Simples x Compostos'!$I$5) -> 3885744.985
A110: 109 | B110: ='Juros Simples x Compostos'!$I$6*'Juros Simples x Compostos'!$I$5+B109 -> 129000 | C110: =C109*(1+'Juros Simples x Compostos'!$I$5) -> 4080032.235
A111: 110 | B111: ='Juros Simples x Compostos'!$I$6*'Juros Simples x Compostos'!$I$5+B110 -> 130000 | C111: =C110*(1+'Juros Simples x Compostos'!$I$5) -> 4284033.846
A112: 111 | B112: ='Juros Simples x Compostos'!$I$6*'Juros Simples x Compostos'!$I$5+B111 -> 131000 | C112: =C111*(1+'Juros Simples x Compostos'!$I$5) -> 4498235.539
A113: 112 | B113: ='Juros Simples x Compostos'!$I$6*'Juros Simples x Compostos'!$I$5+B112 -> 132000 | C113: =C112*(1+'Juros Simples x Compostos'!$I$5) -> 4723147.316
A114: 113 | B114: ='Juros Simples x Compostos'!$I$6*'Juros Simples x Compostos'!$I$5+B113 -> 133000 | C114: =C113*(1+'Juros Simples x Compostos'!$I$5) -> 4959304.681
A115: 114 | B115: ='Juros Simples x Compostos'!$I$6*'Juros Simples x Compostos'!$I$5+B114 -> 134000 | C115: =C114*(1+'Juros Simples x Compostos'!$I$5) -> 5207269.916
A116: 115 | B116: ='Juros Simples x Compostos'!$I$6*'Juros Simples x Compostos'!$I$5+B115 -> 135000 | C116: =C115*(1+'Juros Simples x Compostos'!$I$5) -> 5467633.411
A117: 116 | B117: ='Juros Simples x Compostos'!$I$6*'Juros Simples x Compostos'!$I$5+B116 -> 136000 | C117: =C116*(1+'Juros Simples x Compostos'!$I$5) -> 5741015.082
A118: 117 | B118: ='Juros Simples x Compostos'!$I$6*'Juros Simples x Compostos'!$I$5+B117 -> 137000 | C118: =C117*(1+'Juros Simples x Compostos'!$I$5) -> 6028065.836
A119: 118 | B119: ='Juros Simples x Compostos'!$I$6*'Juros Simples x Compostos'!$I$5+B118 -> 138000 | C119: =C118*(1+'Juros Simples x Compostos'!$I$5) -> 6329469.128
A120: 119 | B120: ='Juros Simples x Compostos'!$I$6*'Juros Simples x Compostos'!$I$5+B119 -> 139000 | C120: =C119*(1+'Juros Simples x Compostos'!$I$5) -> 6645942.584
A121: 120 | B121: ='Juros Simples x Compostos'!$I$6*'Juros Simples x Compostos'!$I$5+B120 -> 140000 | C121: =C120*(1+'Juros Simples x Compostos'!$I$5) -> 6978239.713

Sheet Fórmulas (hidden)
B2: CALCULADORA | E2: EQUIVALÊNCIA DE TAXAS
B3: M = Montante (Bruto) | C3: M = [Ci * (1 + i)^t] | E3: ip = Taxa Procurada | F3: ip = [(1 + ic) ^ (tip / tic)] - 1
C4: M = MA - S | E4: ic = Taxa Conhecida | F4: ic = [(1 + ip) ^ (tic / tip)] - 1
B5: MA = Montante + Aportes (Bruto) | C5: MA = M + S | E5: tic = Tempo em meses da taxa conhecida | F5: tic = [log(1 + ic) / log(1 + ip)] * tip
C6: MA = [Ci * (1 + i)^t] + A * {[(1 + i)^t - 1] / [(1 + i) - 1]} | E6: tip = Tempo em meses da taxa desejada | F6: tip = [log(1 + ip) / log(1 + ic)] * tip
B7: ML = Montante (Líquido) | C7: ML = M(Real)
B8: MAL = Montante + Aportes (Líquido) | C8: MAL = M(Real) + S(Real) | E8: Consulte aqui as fórmulas matemáticas utilizadas nos calculos da Calculadora Financeira
B9: Ci = Capital Inicial | C9: Ci = MA / (1 + i)^t - S
C10: Ci = MA / (1 + i)^t - A * {[(1 + i)^t - 1] / [(1 + i) - 1]}
B11: i = Taxa de Juros | C11: i = [(MA - S) / Ci]^(1 / t) - 1
B12: t = Tempo | C12: t = log[(MA - S) / Ci] / log(1 + i)
B13: A = Aporte | C13: A = MA - [Ci * (1 + i)^t] / {[(1 + i)^t - 1] / [(1 + i) - 1]}
C14: A = S / {[(1 + i)^t - 1] / [(1 + i) - 1]}
B15: S = Aportes no tempo | C15: S = A * {[(1 + i)^t - 1] / [(1 + i) - 1]}
C16: S = MA - [Ci * (1 + i)^t]
C17: S = MA - M
B18: IFL = Inflação a cada intervalo de tempo | C18: 0
B19: iR = Taxa de Juros Real | C19: iR = (1 + i) / (1 + IFL) - 1
C20: iR = (1 + {[M / Ci]^(1 / t)} - 1) / (1 + IFL) - 1

Sheet Calculadora Estendida (hidden)
B2: Calculadora de investimentos a Juros Compostos - Estendida
B5: Tempo | C5: Montante + Aportes (Bruto) | D5: Montante + Aportes (Líquido) | E5: Aporte (+) ou Saque (-) | F5: Capital Inicial | G5: Taxa de juros | H5: Aportes e Saques no tempo | I5: Montante Bruto | J5: Taxa de Inflação
B6: 0 | C6: 0 | D6: 0 | E6: 0 | F6: 2000 | G6: 0 | H6: =IF(E6="","",E6*(1+G6)) -> 0 | I6: 0 | J6: 0 | L6: Aqui é possível fazer estimativas com valores de Taxa de juros, Aporte ou Saque e Taxa de Inflação que mudam ao longo do tempo, além de poder visualizar a evolução do patrimônio a cada período de tempo
B7: =B6+1 -> 1 | C7: =IFERROR(IF(G7="","",(F6+E7)*(1+G7)),"") -> 2030 | D7: =IFERROR(IF(G7="","",(F6+E7)*((1+G7)/(1+J7))),"") -> 2030 | G7: 0.015 | H7: =IFERROR(IF(G7="","",(H6+E7)*(1+G7)),"") -> 0 | I7: =IFERROR(IF(G7="","",(F6)*(1+G7)),"") -> 2030 | J7: 0
B8: =B7+1 -> 2 | C8: =IFERROR(IF(G8="","",(C7+E8)*(1+G8)),"") -> 2060.45 | D8: =IFERROR(IF(G8="","",(D7+E8)*((1+G8)/(1+J8))),"") -> 2060.45 | G8: 0.015 | H8: =IFERROR(IF(G8="","",(H7+E8)*(1+G8)),"") -> 0 | I8: =IFERROR(IF(G8="","",(I7)*(1+G8)),"") -> 2060.45 | J8: 0
B9: 3 | C9: 2091.35675 | D9: 2091.35675 | G9: 0.015 | H9: 0 | I9: 2091.35675 | J9: 0
B10: 4 | C10: 2122.727101 | D10: 2122.727101 | G10: 0.015 | H10: 0 | I10: 2122.727101 | J10: 0
B11: 5 | C11: 2154.568008 | D11: 2154.568008 | G11: 0.015 | H11: 0 | I11: 2154.568008 | J11: 0
B12: 6 | C12: 2186.886528 | D12: =IFERROR(IF(G12="","",(D11+E12)*((1+G12)/(1+J12))),"") -> 2186.886528 | G12: 0.015 | H12: 0 | I12: 2186.886528 | J12: 0
B13: 7 | C13: 2219.689826 | D13: =IFERROR(IF(G13="","",(D12+E13)*((1+G13)/(1+J13))),"") -> 2219.689826 | G13: 0.015 | H13: 0 | I13: 2219.689826 | J13: 0 | L13: Altere somente os valores para Taxa de Juros, Capital Inicial, Aporte ou Saque e Taxa de Inflação
B14: 8 | C14: 2252.985173 | D14: 2252.985173 | G14: 0.015 | H14: 0 | I14: 2252.985173 | J14: 0
B15: 9 | C15: 2286.779951 | D15: 2286.779951 | G15: 0.015 | H15: 0 | I15: 2286.779951 | J15: 0
B16: 10 | C16: 2321.08165 | D16: 2321.08165 | G16: 0.015 | H16: 0 | I16: 2321.08165 | J16: 0
B17: 11 | C17: 2355.897875 | D17: 2355.897875 | G17: 0.015 | H17: 0 | I17: 2355.897875 | J17: 0
B18: 12 | C18: 2391.236343 | D18: 2391.236343 | G18: 0.015 | H18: 0 | I18: 2391.236343 | J18: 0
B19: 13 | C19: =IFERROR(IF(G19="","",(C18+E19)*(1+G19)),"") -> 2427.104888 | D19: =IFERROR(IF(G19="","",(D18+E19)*((1+G19)/(1+J19))),"") -> 2427.104888 | G19: 0.015 | H19: =IFERROR(IF(G19="","",(H18+E19)*(1+G19)),"") -> 0 | I19: =IFERROR(IF(G19="","",(I18)*(1+G19)),"") -> 2427.104888 | J19: 0 | L19: Com exceção do Capital Inicial deixe sempre a primeira linha (Tempo 0) em branco, pois representa a situação inicial
B20: 14 | C20: 2463.511461 | D20: 2463.511461 | G20: 0.015 | H20: 0 | I20: 2463.511461 | J20: 0
B21: 15 | C21: 2500.464133 | D21: 2500.464133 | G21: 0.015 | H21: 0 | I21: 2500.464133 | J21: 0
B22: 16 | C22: 2537.971095 | D22: 2537.971095 | G22: 0.015 | H22: 0 | I22: 2537.971095 | J22: 0
B23: 17 | C23: 2576.040662 | D23: 2576.040662 | G23: 0.015 | H23: 0 | I23: 2576.040662 | J23: 0
B24: 18 | C24: 2614.681272 | D24: 2614.681272 | G24: 0.015 | H24: 0 | I24: 2614.681272 | J24: 0
B25: 19 | C25: =IFERROR(IF(G25="","",(C24+E25)*(1+G25)),"") -> 2653.901491 | D25: =IFERROR(IF(G25="","",(D24+E25)*((1+G25)/(1+J25))),"") -> 2653.901491 | G25: 0.015 | H25: =IFERROR(IF(G25="","",(H24+E25)*(1+G25)),"") -> 0 | I25: =IFERROR(IF(G25="","",(I24)*(1+G25)),"") -> 2653.901491 | J25: 0
B26: 20 | C26: 2693.710013 | D26: 2693.710013 | G26: 0.015 | H26: 0 | I26: 2693.710013 | J26: 0
B27: 21 | C27: 1414.615663 | D27: 1414.615663 | E27: -1300 | G27: 0.015 | H27: -1319.5 | I27: 2734.115663 | J27: 0
B28: 22
B29: 23
B30: 24
B31: 25
B32: 26
B33: 27
B34: 28
B35: 29
B36: 30
B37: 31
B38: 32
B39: 33
B40: 34
B41: 35
B42: 36
B43: 37
B44: 38
B45: 39
B46: 40
B47: 41
B48: 42
B49: 43
B50: 44
B51: 45
B52: 46
B53: 47
B54: 48
B55: 49
B56: 50
B57: 51
B58: 52
B59: 53
B60: 54
B61: 55
B62: 56
B63: 57
B64: 58
B65: 59
B66: 60
B67: 61
B68: 62
B69: 63
B70: 64
B71: 65
B72: =B71+1 -> 66 | C72: =IFERROR(IF(G72="","",(C71+E72)*(1+G72)),"") ->  | H72: =IFERROR(IF(G72="","",(H71+E72)*(1+G72)),"") ->  | I72: =IFERROR(IF(G72="","",(I71)*(1+G72)),"") -> 
B73: 67
B74: 68
B75: 69
B76: 70
B77: 71 | D77: =IFERROR(IF(G77="","",(D76+E77)*((1+G77)/(1+J77))),"") -> 
B78: 72
B79: 73
B80: 74
B81: 75
B82: 76
B83: 77
B84: 78
B85: 79
B86: 80
B87: 81
B88: 82
B89: 83
B90: 84
B91: 85
B92: 86
B93: 87
B94: 88
B95: 89
B96: 90
B97: 91
B98: 92
B99: 93
B100: 94
B101: 95
B102: 96
B103: 97
B104: 98
B105: 99
B106: 100
B107: 101
B108: 102
B109: 103
B110: 104
B111: 105
B112: 106
B113: 107
B114: 108
B115: 109
B116: 110
B117: 111
B118: 112
B119: 113
B120: 114
B121: 115
B122: 116
B123: 117
B124: 118
B125: 119
B126: 120
B127: 121
B128: 122
B129: 123
B130: 124
B131: 125
B132: 126
B133: 127
B134: 128
B135: 129
B136: =B135+1 -> 130 | C136: =IFERROR(IF(G136="","",(C135+E136)*(1+G136)),"") ->  | H136: =IFERROR(IF(G136="","",(H135+E136)*(1+G136)),"") ->  | I136: =IFERROR(IF(G136="","",(I135)*(1+G136)),"") -> 
B137: 131
B138: 132
B139: 133
B140: 134
B141: 135 | D141: =IFERROR(IF(G141="","",(D140+E141)*((1+G141)/(1+J141))),"") -> 
B142: 136
B143: 137
B144: 138
B145: 139
B146: 140
B147: 141
B148: 142
B149: 143
B150: 144
B151: 145
B152: 146
B153: 147
B154: 148
B155: 149
B156: 150
C157: =SUM(C6:C156) -> 48355.65988 | D157: =SUM(D6:D156) -> 48355.65988 | E157: =SUM(E6:E156) -> -1300 | F157: =SUM(F6:F156) -> 2000 | G157: =FVSCHEDULE(1,G6:G156)-1 -> 0.3670578316 | H157: =SUM(H6:H156) -> -1319.5 | I157: =SUM(I6:I156) -> 49675.15988 | J157: =FVSCHEDULE(1,J6:J156)-1 -> 0

Sheet Sistema de Pagamentos (hidden)
C2: Sistema PRICE | G2: Sistema SAC
C3: Total Financiado | E3: Taxa de Juros | F3: N de parcelas | G3: Total Financiado | I3: Taxa de Juros | J3: N de parcelas
C4: 9000 | E4: 0.02 | F4: 50 | G4: 9000 | I4: 0.02 | J4: 50
C5: Parcela | D5: Amortização | E5: Juros | F5: Saldo Devedor | G5: Parcela | H5: Amortização | I5: Juros | J5: Saldo Devedor
B6: 0 | F6: =C4 -> 9000 | J6: =G4 -> 9000 | L6: Sistema PRICE apresenta parcelas constantes no tempo, inicialmente mais suaves porém acaba-se pagando mais juros
B7: 1 | C7: =IF($F$4>=B7,$C$4*($E$4*(1+$E$4)^$F$4)/((1+$E$4)^($F$4)-1),"") -> 286.4088873 | D7: =IFERROR(C7-E7,"") -> 106.4088873 | E7: =IFERROR(F6*$E$4,"") -> 180 | F7: =IF($F$4>=B7,IF($F$4=B7,ROUND(F6-D7,2),F6-D7),"") -> 8893.591113 | G7: =IFERROR(H7+I7,"") -> 360 | H7: =IF($J$4>=B7,$G$4/$J$4,"") -> 180 | I7: =IFERROR(J6*$E$4,"") -> 180 | J7: =IF($J$4>=B7,IF($J$4=B7,ROUND(J6-H7,2),J6-H7),"") -> 8820
B8: 2 | C8: =IF($F$4>=B8,$C$4*($E$4*(1+$E$4)^$F$4)/((1+$E$4)^($F$4)-1),"") -> 286.4088873 | D8: =IFERROR(C8-E8,"") -> 108.5370651 | E8: 177.8718223 | F8: 8785.054048 | G8: =IFERROR(H8+I8,"") -> 356.4 | H8: =IF($J$4>=B8,$G$4/$J$4,"") -> 180 | I8: =IFERROR(J7*$E$4,"") -> 176.4 | J8: 8640
B9: 3 | C9: 286.4088873 | D9: 110.7078064 | E9: 175.701081 | F9: 8674.346241 | G9: 352.8 | H9: 180 | I9: 172.8 | J9: 8460
B10: 4 | C10: 286.4088873 | D10: 112.9219625 | E10: 173.4869248 | F10: 8561.424279 | G10: 349.2 | H10: 180 | I10: 169.2 | J10: 8280
B11: 5 | C11: 286.4088873 | D11: 115.1804018 | E11: 171.2284856 | F11: 8446.243877 | G11: 345.6 | H11: 180 | I11: 165.6 | J11: 8100
B12: 6 | C12: 286.4088873 | D12: 117.4840098 | E12: 168.9248775 | F12: 8328.759867 | G12: 342 | H12: 180 | I12: 162 | J12: 7920
B13: 7 | C13: 286.4088873 | D13: 119.83369 | E13: 166.5751973 | F13: 8208.926177 | G13: 338.4 | H13: 180 | I13: 158.4 | J13: 7740
B14: 8 | C14: 286.4088873 | D14: 122.2303638 | E14: 164.1785235 | F14: 8086.695813 | G14: 334.8 | H14: 180 | I14: 154.8 | J14: 7560 | L14: Sistema SAC apresenta amortizações constantes no tempo, parcelas inicialmente mais altas, porém acaba-se pagando menos juros
B15: 9 | C15: 286.4088873 | D15: 124.6749711 | E15: 161.7339163 | F15: 7962.020842 | G15: 331.2 | H15: 180 | I15: 151.2 | J15: 7380
B16: 10 | C16: 286.4088873 | D16: 127.1684705 | E16: 159.2404168 | F16: 7834.852372 | G16: 327.6 | H16: 180 | I16: 147.6 | J16: 7200
B17: 11 | C17: 286.4088873 | D17: 129.7118399 | E17: 156.6970474 | F17: 7705.140532 | G17: 324 | H17: 180 | I17: 144 | J17: 7020
B18: 12 | C18: 286.4088873 | D18: 132.3060767 | E18: 154.1028106 | F18: 7572.834455 | G18: 320.4 | H18: 180 | I18: 140.4 | J18: 6840
B19: 13 | C19: 286.4088873 | D19: 134.9521982 | E19: 151.4566891 | F19: 7437.882257 | G19: 316.8 | H19: 180 | I19: 136.8 | J19: 6660
B20: 14 | C20: 286.4088873 | D20: 137.6512422 | E20: 148.7576451 | F20: 7300.231015 | G20: 313.2 | H20: 180 | I20: 133.2 | J20: 6480
B21: 15 | C21: 286.4088873 | D21: 140.404267 | E21: 146.0046203 | F21: 7159.826748 | G21: 309.6 | H21: 180 | I21: 129.6 | J21: 6300
B22: 16 | C22: 286.4088873 | D22: 143.2123524 | E22: 143.196535 | F22: 7016.614395 | G22: 306 | H22: 180 | I22: 126 | J22: 6120
B23: 17 | C23: 286.4088873 | D23: 146.0765994 | E23: 140.3322879 | F23: 6870.537796 | G23: 302.4 | H23: 180 | I23: 122.4 | J23: 5940
B24: 18 | C24: 286.4088873 | D24: 148.9981314 | E24: 137.4107559 | F24: 6721.539665 | G24: 298.8 | H24: 180 | I24: 118.8 | J24: 5760
B25: 19 | C25: 286.4088873 | D25: 151.978094 | E25: 134.4307933 | F25: 6569.56157 | G25: 295.2 | H25: 180 | I25: 115.2 | J25: 5580
B26: 20 | C26: 286.4088873 | D26: 155.0176559 | E26: 131.3912314 | F26: 6414.543915 | G26: 291.6 | H26: 180 | I26: 111.6 | J26: 5400
B27: 21 | C27: 286.4088873 | D27: 158.118009 | E27: 128.2908783 | F27: 6256.425906 | G27: 288 | H27: 180 | I27: 108 | J27: 5220
B28: 22 | C28: 286.4088873 | D28: 161.2803692 | E28: 125.1285181 | F28: 6095.145536 | G28: 284.4 | H28: 180 | I28: 104.4 | J28: 5040
B29: 23 | C29: 286.4088873 | D29: 164.5059766 | E29: 121.9029107 | F29: 5930.63956 | G29: 280.8 | H29: 180 | I29: 100.8 | J29: 4860
B30: 24 | C30: 286.4088873 | D30: 167.7960961 | E30: 118.6127912 | F30: 5762.843464 | G30: 277.2 | H30: 180 | I30: 97.2 | J30: 4680
B31: 25 | C31: 286.4088873 | D31: 171.1520181 | E31: 115.2568693 | F31: 5591.691445 | G31: 273.6 | H31: 180 | I31: 93.6 | J31: 4500
B32: 26 | C32: 286.4088873 | D32: 174.5750584 | E32: 111.8338289 | F32: 5417.116387 | G32: 270 | H32: 180 | I32: 90 | J32: 4320
B33: 27 | C33: 286.4088873 | D33: 178.0665596 | E33: 108.3423277 | F33: 5239.049827 | G33: 266.4 | H33: 180 | I33: 86.4 | J33: 4140
B34: 28 | C34: 286.4088873 | D34: 181.6278908 | E34: 104.7809965 | F34: 5057.421937 | G34: 262.8 | H34: 180 | I34: 82.8 | J34: 3960
B35: 29 | C35: 286.4088873 | D35: 185.2604486 | E35: 101.1484387 | F35: 4872.161488 | G35: 259.2 | H35: 180 | I35: 79.2 | J35: 3780
B36: 30 | C36: 286.4088873 | D36: 188.9656576 | E36: 97.44322976 | F36: 4683.195831 | G36: 255.6 | H36: 180 | I36: 75.6 | J36: 3600
B37: 31 | C37: 286.4088873 | D37: 192.7449707 | E37: 93.66391661 | F37: 4490.45086 | G37: 252 | H37: 180 | I37: 72 | J37: 3420
B38: 32 | C38: 286.4088873 | D38: 196.5998701 | E38: 89.8090172 | F38: 4293.85099 | G38: 248.4 | H38: 180 | I38: 68.4 | J38: 3240
B39: 33 | C39: 286.4088873 | D39: 200.5318675 | E39: 85.87701979 | F39: 4093.319122 | G39: 244.8 | H39: 180 | I39: 64.8 | J39: 3060
B40: 34 | C40: 286.4088873 | D40: 204.5425049 | E40: 81.86638244 | F40: 3888.776617 | G40: 241.2 | H40: 180 | I40: 61.2 | J40: 2880
B41: 35 | C41: 286.4088873 | D41: 208.633355 | E41: 77.77553234 | F41: 3680.143262 | G41: 237.6 | H41: 180 | I41: 57.6 | J41: 2700
B42: 36 | C42: 286.4088873 | D42: 212.8060221 | E42: 73.60286525 | F42: 3467.33724 | G42: 234 | H42: 180 | I42: 54 | J42: 2520
B43: 37 | C43: 286.4088873 | D43: 217.0621425 | E43: 69.3467448 | F43: 3250.275098 | G43: 230.4 | H43: 180 | I43: 50.4 | J43: 2340
B44: 38 | C44: 286.4088873 | D44: 221.4033854 | E44: 65.00550195 | F44: 3028.871712 | G44: 226.8 | H44: 180 | I44: 46.8 | J44: 2160
B45: 39 | C45: 286.4088873 | D45: 225.8314531 | E45: 60.57743425 | F45: 2803.040259 | G45: 223.2 | H45: 180 | I45: 43.2 | J45: 1980
B46: 40 | C46: 286.4088873 | D46: 230.3480821 | E46: 56.06080518 | F46: 2572.692177 | G46: 219.6 | H46: 180 | I46: 39.6 | J46: 1800
B47: 41 | C47: 286.4088873 | D47: 234.9550438 | E47: 51.45384354 | F47: 2337.737133 | G47: 216 | H47: 180 | I47: 36 | J47: 1620
B48: 42 | C48: 286.4088873 | D48: 239.6541447 | E48: 46.75474266 | F48: 2098.082989 | G48: 212.4 | H48: 180 | I48: 32.4 | J48: 1440
B49: 43 | C49: 286.4088873 | D49: 244.4472276 | E49: 41.96165977 | F49: 1853.635761 | G49: 208.8 | H49: 180 | I49: 28.8 | J49: 1260
B50: 44 | C50: 286.4088873 | D50: 249.3361721 | E50: 37.07271522 | F50: 1604.299589 | G50: 205.2 | H50: 180 | I50: 25.2 | J50: 1080
B51: 45 | C51: 286.4088873 | D51: 254.3228956 | E51: 32.08599178 | F51: 1349.976693 | G51: 201.6 | H51: 180 | I51: 21.6 | J51: 900
B52: 46 | C52: 286.4088873 | D52: 259.4093535 | E52: 26.99953387 | F52: 1090.56734 | G52: 198 | H52: 180 | I52: 18 | J52: 720
B53: 47 | C53: 286.4088873 | D53: 264.5975405 | E53: 21.8113468 | F53: 825.9697993 | G53: 194.4 | H53: 180 | I53: 14.4 | J53: 540
B54: 48 | C54: 286.4088873 | D54: 269.8894913 | E54: 16.51939599 | F54: 556.080308 | G54: 190.8 | H54: 180 | I54: 10.8 | J54: 360
B55: 49 | C55: 286.4088873 | D55: 275.2872812 | E55: 11.12160616 | F55: 280.7930268 | G55: 187.2 | H55: 180 | I55: 7.2 | J55: 180
B56: 50 | C56: 286.4088873 | D56: 280.7930268 | E56: 5.615860536 | F56: =IF($F$4>=B56,IF($F$4=B56,ROUND(F55-D56,2),F55-D56),"") -> 0 | G56: 183.6 | H56: 180 | I56: 3.6 | J56: =IF($J$4>=B56,IF($J$4=B56,ROUND(J55-H56,2),J55-H56),"") -> 0
C57: =SUM(C6:C56) -> 14320.44437 | D57: =SUM(D6:D56) -> 9000 | E57: =SUM(E6:E56) -> 5320.444367 | F57: 0 | G57: =SUM(G6:G56) -> 13590 | H57: =SUM(H6:H56) -> 9000 | I57: =SUM(I6:I56) -> 4590 | J57: 0

Sheet Glossário (hidden)
B2: Glossário
B3: Amortização
C4: É a redução de dívida por meio de pagamento parcial ou gradual acertado entre as partes. É um processo de extinção de uma dívida através de pagamentos periódicos, que são realizados em função de um planejamento, de modo que cada prestação corresponde à soma do reembolso do capital ou do pagamento dos juros do saldo devedor, podendo ser o reembolso de ambos, sendo que os juros são sempre calculados sobre o saldo devedor.
B9: Aporte
C10: Significa subsídio, contribuição. É um termo muito utilizado no meio empresarial. Aporte é mais usado como uma contribuição financeira, um dinheiro ou uma ajuda utilizada para um determinado fim.
B12: Capital Inicial
C13: É a quantia em dinheiro que se possui no momento que se inicia um investimento.
B14: Equivalência de Taxas
C15: São taxas que quando aplicadas ao mesmo capital, num mesmo intervalo de tempo, produzem montantes iguais, porém estão em tempo diferentes. Exemplo taxa ao ano e taxa ao mês.
B17: Inflação
C18: É um conceito que designa o aumento continuado e generalizado dos preços dos bens e serviço. Também pode ser entendido como a perda do poder de compra de uma moeda.
B20: Juros Compostos
C21: Juros sobre juros. Os juros de cada período são somados ao capital para o cálculo de novos juros nos períodos seguintes. Nesse caso, o valor da dívida é sempre corrigida e a taxa de juros é calculada sobre esse valor.
B24: Juros Simples
C25: A taxa de juros é aplicada sobre o principal (valor emprestado ou capital inicial) de forma linear, ou seja, não considera que o saldo da dívida aumenta ou diminui conforme o passar do tempo.
B27: Montante Bruto
C28: É a quantia em dinheiro que se possui após a incidência de juros sobre o capital inicial antes do desconto da inflação e impostos.
B30: Montante Líquido
C31: É a quantia em dinheiro que se possui após a incidência de juros sobre o capital inicial após o desconto da inflação e impostos.
B33: Sistema de Pagamento
C34: Também conhecido como Sistema de Amortização, é um metodo utilizado para se calcula o pagamento de dívidas entre credor e devedor.
B36: Taxa de Juros
C37: É o preço do dinheiro no tempo.
B38: Taxa de Juros Real
C39: É a taxa de juros já descontado o efeito da inflação.
